[Event "Turkish Cup 2024"]
[Site "Denizli"]
[Date "2024.07.31"]
[Round "3"]
[White "Yanikoglu, Omer"]
[Black "Konusoglu, Kemal Safa"]
[Result "1-0"]
[ECO "D04"]
[WhiteElo "1727"]
[BlackElo "1904"]
[Annotator "ChessBase"]
[PlyCount "157"]
[EventDate "2024.08.01"]
[EventType "swiss"]
[EventCountry "TUR"]
[SourceTitle "playchess.com"]
[Source "ChessBase"]
[SourceQuality "1"]
[TimeControl "5400+30"]

1. Nf3 {[%emt 0:01:00]} Nf6 {[%emt 0:01:00]} 2. b3 {[%emt 0:00:30]} d5 {[%emt 0:00:00]} 3. Bb2 {[%emt 0:00:00]} Bf5 {[%emt 0:00:00]} 4. e3 {[%emt 0:00:00]} e6 {[%emt 0:00:30]} 5. d4 {[%emt 0:00:00]} Be7 {[%emt 0:00:30]} 6. Nbd2 {[%emt 0:00:00]} O-O {[%emt 0:00:30]} 7. Be2 {[%emt 0:02:30]} h6 {[%emt 0:00:30]} 8. O-O {[%emt 0:00:00]} c6 {[%emt 0:00:30]} 9. Ne5 {[%emt 0:00:00]} Nbd7 {[%emt 0:00:00]} 10. Ndf3 {[%emt 0:00:00]} a5 {[%emt 0:01:00]} 11. Bd3 {[%emt 0:02:00]} Bxd3 {[%emt 0:00:30]} 12. Qxd3 {[%emt 0:01:30]} a4 {[%emt 0:02:30]} 13. a3 {[%emt 0:01:30]} axb3 {[%emt 0:01:30]} 14. cxb3 {[%emt 0:00:30]} Qb6 {[%emt 0:04:30]} 15. b4 {[%emt 0:00:30]} Qa6 {[%emt 0:09:30]} 16. Qxa6 {[%emt 0:03:30]} Rxa6 {[%emt 0:00:30]} 17. Nd3 {[%emt 0:02:30]} Nb6 {[%emt 0:03:30]} 18. Nc5 {[%emt 0:02:30]} Bxc5 {[%emt 0:02:30]} 19. dxc5 {[%emt 0:03:30]} Nc4 {[%emt 0:00:30]} 20. Bxf6 {[%emt 0:00:30]} gxf6 {[%emt 0:00:30]} 21. a4 {[%emt 0:00:30]} b6 {[%emt 0:11:30]} 22. cxb6 {[%emt 0:02:30]} Rxb6 {[%emt 0:00:30]} 23. Rfb1 {[%emt 0:00:30]} e5 {[%emt 0:08:30]} 24. b5 {[%emt 0:13:30]} Rfb8 {[%emt 0:04:30]} 25. a5 {[%emt 0:00:30]} Rxb5 {[%emt 0:00:30]} 26. Rxb5 {[%emt 0:00:00]} cxb5 {[%emt 0:00:00]} 27. a6 {[%emt 0:00:00]} b4 {[%emt 0:01:00]} 28. Ne1 {[%emt 0:01:30]} b3 {[%emt 0:14:30]} 29. Rb1 {[%emt 0:06:30]} b2 {[%emt 0:16:28]} 30. Nd3 {[%emt 0:00:30]} d4 {[%emt 0:04:32]} 31. exd4 {[%emt 0:02:30]} exd4 {[%emt 0:02:44]} 32. Nxb2 {[%emt 0:01:30]} Nxb2 {[%emt 0:00:30]} 33. a7 {[%emt 0:00:30]} Ra8 {[%emt 0:04:38]} 34. Rxb2 {[%emt 0:00:30]} Rxa7 {[%emt 0:00:04]} 35. g3 {[%emt 0:00:00]} Kg7 {[%emt 0:01:25]} 36. Kg2 {[%emt 0:02:00]} Kg6 {[%emt 0:00:06]} 37. Kf3 {[%emt 0:00:30]} f5 {[%emt 0:00:30]} 38. h4 {[%emt 0:00:30]} Rd7 {[%emt 0:01:55]} 39. Kf4 {[%emt 0:00:30]} Rd5 {[%emt 0:04:01]} 40. Rd2 {[%emt 0:02:30]} d3 {[%emt 0:01:04]} 41. Ke3 {[%emt 0:00:00]} Kh5 {[%emt 0:00:11]} 42. f3 {[%emt 0:00:00]} Rd6 {[%emt 0:01:03]} 43. Kf4 {[%emt 0:04:30]} Kg6 {[%emt 0:00:05]} 44. Ke3 {[%emt 0:00:30]} Kh5 {[%emt 0:00:06]} 45. Kf4 {[%emt 0:02:30]} Rd5 {[%emt 0:00:00]} 46. Ke3 {[%emt 0:03:30]} Rd7 {[%emt 0:00:30]} 47. Kf4 {[%emt 0:00:30]} Kg6 {[%emt 0:00:00]} 48. Ke3 {[%emt 0:00:30]} Kf6 {[%emt 0:02:00]} 49. f4 {[%emt 0:06:30]} Ke6 {[%emt 0:00:04]} 50. h5 {[%emt 0:00:30]} Rd8 {[%emt 0:01:09]} 51. Kf3 {[%emt 0:01:30]} Rd4 {[%emt 0:00:09]} 52. Ke3 {[%emt 0:02:30]} Rd8 {[%emt 0:01:03]} 53. Kf3 {[%emt 0:02:30]} Rd4 {[%emt 0:00:57]} 54. Ke3 {[%emt 0:00:30]} Rd5 {[%emt 0:00:00]} 55. Kf3 {[%emt 0:00:00]} Kd6 {[%emt 0:00:00]} 56. Ke3 {[%emt 0:01:00]} Kc5 {[%emt 0:00:13]} 57. Rxd3 {[%emt 0:03:30]} Rxd3+ {[%emt 0:00:07]} 58. Kxd3 {[%emt 0:00:00]} Kd5 {[%emt 0:00:03]} 59. Ke3 {[%emt 0:01:00]} Kc4 {[%emt 0:00:04]} 60. Ke2 {[%emt 0:00:30]} Kc3 {[%emt 0:01:42]} 61. Ke3 {[%emt 0:00:30]} f6 {[%emt 0:00:10]} 62. Ke2 {[%emt 0:02:30]} Kc2 {[%emt 0:00:05]} 63. Ke3 {[%emt 0:00:30]} Kd1 {[%emt 0:01:41]} 64. Kf3 {[%emt 0:00:00]} Kd2 {[%emt 0:01:25]} 65. g4 {[%emt 0:00:00]} fxg4+ {[%emt 0:00:16]} 66. Kxg4 {[%emt 0:00:30]} Ke3 {[%emt 0:00:37]} 67. Kf5 {[%emt 0:00:00]} Kf3 {[%emt 0:00:00]} 68. Kg6 {[%emt 0:00:00]} Kxf4 {[%emt 0:00:11]} 69. Kxh6 {[%emt 0:00:30]} Ke4 {[%emt 0:01:28]} 70. Kg6 {[%emt 0:00:30]} f5 {[%emt 0:00:07]} 71. h6 {[%emt 0:00:30]} f4 {[%emt 0:00:30]} 72. h7 {[%emt 0:00:00]} f3 {[%emt 0:00:00]} 73. h8=Q {[%emt 0:00:00]} Ke3 {[%emt 0:00:00]} 74. Qe5+ {[%emt 0:01:30]} Kf2 {[%emt 0:00:10]} 75. Kh5 {[%emt 0:00:30]} Kg2 {[%emt 0:00:36]} 76. Qg5+ {[%emt 0:00:30]} Kh1 {[%emt 0:01:44]} 77. Qh4+ {[%emt 0:01:30]} Kg2 {[%emt 0:00:30]} 78. Qg4+ {[%emt 0:00:00]} Kf2 {[%emt 0:00:18]} 79. Kh4 {[%emt 0:00:00]} 1-0

[Event "Turkish Cup 2024"]
[Site "Denizli"]
[Date "2024.07.31"]
[Round "3"]
[White "Citil, Feyzullah"]
[Black "Topuz, Mirac Melih"]
[Result "0-1"]
[ECO "C63"]
[WhiteElo "1720"]
[BlackElo "2148"]
[Annotator "RC"]
[PlyCount "70"]
[EventDate "2024.08.01"]
[EventType "swiss"]
[EventCountry "TUR"]
[SourceTitle "playchess.com"]
[Source "ChessBase"]
[SourceQuality "1"]
[TimeControl "5400+30"]

1. e4 {[%emt 0:06:00]} e5 {[%emt 0:04:00]} 2. Nf3 {[%emt 0:00:30]} Nc6 {[%emt 0:00:30]} 3. Bb5 {[%emt 0:00:30]} f5 {[%emt 0:00:00]} 4. d3 {[%emt 0:00:30]} fxe4 {[%emt 0:00:00]} 5. dxe4 {[%emt 0:00:00]} Nf6 {[%emt 0:00:30]} 6. O-O {[%emt 0:00:00]} d6 {[%emt 0:00:00]} 7. Nc3 {[%emt 0:01:30]} Be7 {[%emt 0:00:00]} 8. Bc4 {[%emt 0:00:30]} Bg4 {[%emt 0:00:30]} 9. h3 {[%emt 0:01:30]} Bh5 {[%emt 0:00:30]} 10. g4 {[%emt 0:04:30]} Bg6 {[%emt 0:00:30]} 11. Ng5 {[%emt 0:03:30]} Nd4 {[%emt 0:05:30]} 12. f4 {[%emt 0:07:30]} h6 {[%emt 0:09:30]} 13. Ne6 {[%emt 0:03:30]} Nxe6 {[%emt 0:00:30]} 14. Bxe6 {[%emt 0:00:30]} exf4 {[%emt 0:02:30]} 15. Bxf4 {[%emt 0:04:30]} c6 {[%emt 0:05:30]} 16. Be3 {[%emt 0:26:30]} Qa5 {[%emt 0:01:30]} 17. Qd4 {[%emt 0:05:30]} Qe5 {[%emt 0:03:30]} 18. Qxe5 {[%emt 0:00:30]} dxe5 {[%emt 0:00:00]} 19. Rad1 {[%emt 0:01:30]} Bb4 {[%emt 0:01:00]} 20. Bf5 {[%emt 0:01:30]} Bxf5 {[%emt 0:05:30]} 21. Rxf5 {[%emt 0:00:30]} Bxc3 {[%emt 0:00:30]} 22. bxc3 {[%emt 0:00:00]} O-O {[%emt 0:01:30]} 23. Rxe5 {[%emt 0:04:00]} Rfe8 {[%emt 0:04:30]} 24. Bf4 {[%emt 0:02:30]} Nxe4 {[%emt 0:00:30]} 25. Rd7 {[%emt 0:01:30]} Nxc3 {[%emt 0:01:30]} 26. Rf5 {[%emt 0:04:30]} Rad8 {[%emt 0:02:30]} 27. Rxb7 {[%emt 0:03:43]} Re2 {[%emt 0:09:30]} 28. Bg3 {[%emt 0:00:27]} Rxc2 {[%emt 0:20:30]} 29. Bf2 {[%emt 0:04:21]} Rd1+ {[%emt 0:02:37]} 30. Kg2 {[%emt 0:00:30]} Ne4 {[%emt 0:00:23]} 31. Rxa7 {[%emt 0:03:29]} Rdd2 {[%emt 0:00:30]} 32. Kf3 {[%emt 0:04:16]} Nxf2 {[%emt 0:03:48]} 33. Rff7 {[%emt 0:00:12]} Rc3+ {[%emt 0:00:11]} 34. Kf4 {[%emt 0:00:18]} Nxh3+ {[%emt 0:00:42]} 35. Ke5 {[%emt 0:01:21]} Rd5+ {[%emt 0:00:06]} 0-1

[Event "Turkish Cup 2024"]
[Site "Denizli"]
[Date "2024.07.31"]
[Round "3"]
[White "Sirin, Ahmet"]
[Black "Kurdas, Halil Ibrahim"]
[Result "0-1"]
[ECO "B44"]
[WhiteElo "1660"]
[BlackElo "1855"]
[Annotator "NA"]
[PlyCount "63"]
[EventDate "2024.08.01"]
[EventType "swiss"]
[EventCountry "TUR"]
[SourceTitle "playchess.com"]
[Source "ChessBase"]
[SourceQuality "1"]
[TimeControl "5400+30"]

1. e4 {[%emt 0:01:00]} c5 {[%emt 0:01:00]} 2. Nf3 {[%emt 0:00:00]} e6 {[%emt 0:00:30]} 3. d4 {[%emt 0:00:00]} cxd4 {[%emt 0:00:00]} 4. Nxd4 {[%emt 0:00:30]} Nf6 {[%emt 0:01:00]} 5. Bd3 {[%emt 0:00:00]} Nc6 {[%emt 0:00:30]} 6. Nxc6 {[%emt 0:01:00]} bxc6 {[%emt 0:00:30]} 7. c4 {[%emt 0:01:30]} Qc7 {[%emt 0:00:30]} 8. Nc3 {[%emt 0:01:30]} Be7 {[%emt 0:00:30]} 9. O-O {[%emt 0:00:30]} Rb8 {[%emt 0:03:30]} 10. b3 {[%emt 0:04:30]} h5 {[%emt 0:02:30]} 11. f3 {[%emt 0:06:30]} h4 {[%emt 0:02:30]} 12. f4 {[%emt 0:05:30]} Bc5+ {[%emt 0:01:30]} 13. Kh1 {[%emt 0:00:30]} Bd4 {[%emt 0:00:00]} 14. Qe1 {[%emt 0:10:30]} Nh5 {[%emt 0:12:00]} 15. Be3 {[%emt 0:00:30]} Qb6 {[%emt 0:00:30]} 16. Rf3 {[%emt 0:21:30]} Bxe3 {[%emt 0:06:30]} 17. Qxe3 {[%emt 0:00:30]} Qxe3 {[%emt 0:00:30]} 18. Rxe3 {[%emt 0:00:30]} Nxf4 {[%emt 0:00:00]} 19. Rf1 {[%emt 0:02:30]} e5 {[%emt 0:01:00]} 20. Ne2 {[%emt 0:04:30]} g5 {[%emt 0:01:30]} 21. Ng1 {[%emt 0:04:30]} d6 {[%emt 0:01:30]} 22. c5 {[%emt 0:01:30]} Nxd3 {[%emt 0:00:30]} 23. cxd6 {[%emt 0:02:30]} Nf4 {[%emt 0:00:30]} 24. Rc1 {[%emt 0:00:30]} Rb6 {[%emt 0:00:30]} 25. Nf3 {[%emt 0:00:30]} f6 {[%emt 0:00:30]} 26. Nd2 {[%emt 0:00:30]} Be6 {[%emt 0:00:00]} 27. Nb1 {[%emt 0:01:30]} Kd7 {[%emt 0:01:00]} 28. Rd1 {[%emt 0:00:30]} c5 {[%emt 0:00:30]} 29. Nc3 {[%emt 0:00:00]} Rxd6 {[%emt 0:00:30]} 30. Rxd6+ {[%emt 0:00:00]} Kxd6 {[%emt 0:00:00]} 31. Nb5+ {[%emt 0:00:30]} Kc6 {[%emt 0:00:00]} 32. b4 {[%emt 0:00:30]} 0-1

[Event "Turkish Cup 2024"]
[Site "Denizli"]
[Date "2024.08.01"]
[Round "4"]
[White "Gunduz, Umut Erdem"]
[Black "Cakmak, Kursat Kagan"]
[Result "1-0"]
[ECO "B45"]
[WhiteElo "2276"]
[BlackElo "1811"]
[Annotator "RC"]
[PlyCount "93"]
[EventDate "2024.08.01"]
[EventType "swiss"]
[EventCountry "TUR"]
[SourceTitle "playchess.com"]
[Source "ChessBase"]
[SourceQuality "1"]
[TimeControl "5400+30"]

1. e4 {[%emt 0:06:00]} c5 {[%emt 0:01:00]} 2. Nf3 {[%emt 0:00:30]} e6 {[%emt 0:00:30]} 3. d4 {[%emt 0:00:30]} cxd4 {[%emt 0:00:30]} 4. Nxd4 {[%emt 0:00:00]} Nf6 {[%emt 0:00:00]} 5. Nc3 {[%emt 0:00:00]} Nc6 {[%emt 0:00:00]} 6. Nxc6 {[%emt 0:00:30]} bxc6 {[%emt 0:00:30]} 7. e5 {[%emt 0:00:30]} Nd5 {[%emt 0:00:30]} 8. Ne4 {[%emt 0:00:30]} Bb7 {[%emt 0:00:00]} 9. Be2 {[%emt 0:00:30]} c5 {[%emt 0:00:00]} 10. O-O {[%emt 0:01:30]} Qc7 {[%emt 0:01:30]} 11. Nd6+ {[%emt 0:00:00]} Bxd6 {[%emt 0:01:30]} 12. exd6 {[%emt 0:00:00]} Qb6 {[%emt 0:01:30]} 13. a4 {[%emt 0:03:30]} Rc8 {[%emt 0:09:30]} 14. c4 {[%emt 0:15:30]} Nf6 {[%emt 0:03:30]} 15. a5 {[%emt 0:01:30]} Qc6 {[%emt 0:02:30]} 16. f3 {[%emt 0:00:00]} h6 {[%emt 0:05:30]} 17. Qd3 {[%emt 0:04:00]} O-O {[%emt 0:09:30]} 18. Bd1 {[%emt 0:02:30]} Ba6 {[%emt 0:04:30]} 19. Bf4 {[%emt 0:11:30]} Qd5 {[%emt 0:05:30]} 20. cxd5 {[%emt 0:06:30]} Bxd3 {[%emt 0:00:30]} 21. dxe6 {[%emt 0:00:00]} fxe6 {[%emt 0:09:30]} 22. Re1 {[%emt 0:01:00]} Nd5 {[%emt 0:04:30]} 23. Bg3 {[%emt 0:01:30]} Rb8 {[%emt 0:02:30]} 24. Rc1 {[%emt 0:02:30]} c4 {[%emt 0:04:30]} 25. Ba4 {[%emt 0:04:30]} Rfd8 {[%emt 0:01:30]} 26. Be5 {[%emt 0:01:30]} a6 {[%emt 0:01:30]} 27. Bd4 {[%emt 0:01:30]} Rb4 {[%emt 0:08:30]} 28. Ra1 {[%emt 0:00:30]} Rb7 {[%emt 0:00:00]} 29. Red1 {[%emt 0:03:30]} Re8 {[%emt 0:03:00]} 30. Be5 {[%emt 0:00:30]} g5 {[%emt 0:01:37]} 31. Rd2 {[%emt 0:02:30]} Nb4 {[%emt 0:04:20]} 32. Ra3 {[%emt 0:04:30]} Rc8 {[%emt 0:00:45]} 33. Bd4 {[%emt 0:01:30]} Kf7 {[%emt 0:03:22]} 34. Rc3 {[%emt 0:01:30]} e5 {[%emt 0:02:01]} 35. Bb6 {[%emt 0:03:30]} Rf8 {[%emt 0:03:57]} 36. Rc1 {[%emt 0:05:47]} Ke6 {[%emt 0:01:13]} 37. b3 {[%emt 0:00:36]} e4 {[%emt 0:00:53]} 38. bxc4 {[%emt 0:01:19]} Kxd6 {[%emt 0:01:40]} 39. fxe4 {[%emt 0:00:30]} Rc8 {[%emt 0:00:45]} 40. Rb1 {[%emt 0:05:15]} Rxc4 {[%emt 0:00:33]} 41. Rxb4 {[%emt 0:00:33]} Rxb4 {[%emt 0:00:30]} 42. Rxd3+ {[%emt 0:00:30]} Ke5 {[%emt 0:00:30]} 43. Bxd7 {[%emt 0:00:30]} h5 {[%emt 0:00:30]} 44. Rd1 {[%emt 0:00:30]} h4 {[%emt 0:00:30]} 45. h3 {[%emt 0:00:13]} Rc4 {[%emt 0:02:23]} 46. Bf5 {[%emt 0:02:02]} Rc2 {[%emt 0:00:10]} 47. Bd4+ {[%emt 0:00:02]} 1-0

[Event "Turkish Cup 2024"]
[Site "Denizli"]
[Date "2024.08.01"]
[Round "4"]
[White "Yildiz, Serdar Murat"]
[Black "Hanci, Ilker"]
[Result "1-0"]
[ECO "B00"]
[WhiteElo "2182"]
[BlackElo "1743"]
[Annotator "RC"]
[PlyCount "65"]
[EventDate "2024.08.01"]
[EventType "swiss"]
[EventCountry "TUR"]
[SourceTitle "playchess.com"]
[Source "ChessBase"]
[SourceQuality "1"]
[TimeControl "5400+30"]

1. e4 {[%emt 0:01:00]} Nc6 {[%emt 0:01:00]} 2. d4 {[%emt 0:00:30]} e5 {[%emt 0:00:30]} 3. d5 {[%emt 0:00:00]} Nce7 {[%emt 0:00:00]} 4. Nf3 {[%emt 0:00:00]} Ng6 {[%emt 0:00:00]} 5. h4 {[%emt 0:00:00]} h5 {[%emt 0:00:30]} 6. Bg5 {[%emt 0:00:00]} Nf6 {[%emt 0:00:30]} 7. Nc3 {[%emt 0:00:00]} Bc5 {[%emt 0:01:30]} 8. Nd2 {[%emt 0:00:00]} a6 {[%emt 0:01:30]} 9. Nb3 {[%emt 0:00:00]} Bb4 {[%emt 0:03:30]} 10. Be2 {[%emt 0:01:00]} Nf4 {[%emt 0:02:30]} 11. Bxf4 {[%emt 0:02:30]} exf4 {[%emt 0:00:30]} 12. e5 {[%emt 0:00:30]} Ne4 {[%emt 0:02:30]} 13. Qd4 {[%emt 0:00:30]} Nxc3 {[%emt 0:09:30]} 14. Qxb4 {[%emt 0:16:30]} Nxd5 {[%emt 0:11:30]} 15. Qe4 {[%emt 0:06:30]} Nb6 {[%emt 0:06:30]} 16. Qxf4 {[%emt 0:04:30]} Qe7 {[%emt 0:05:30]} 17. O-O-O {[%emt 0:00:30]} g6 {[%emt 0:17:30]} 18. g4 {[%emt 0:00:30]} hxg4 {[%emt 0:00:30]} 19. Bxg4 {[%emt 0:00:00]} Kf8 {[%emt 0:05:30]} 20. h5 {[%emt 0:01:00]} g5 {[%emt 0:01:30]} 21. Qd4 {[%emt 0:01:30]} Rh6 {[%emt 0:02:30]} 22. f4 {[%emt 0:08:30]} d6 {[%emt 0:10:22]} 23. exd6 {[%emt 0:05:30]} Qxd6 {[%emt 0:06:19]} 24. fxg5 {[%emt 0:00:30]} Qxd4 {[%emt 0:04:01]} 25. Rxd4 {[%emt 0:00:30]} Rd6 {[%emt 0:00:43]} 26. Bf3 {[%emt 0:00:30]} Rxd4 {[%emt 0:01:54]} 27. Nxd4 {[%emt 0:00:30]} c5 {[%emt 0:00:07]} 28. Nb3 {[%emt 0:00:00]} Bf5 {[%emt 0:01:06]} 29. Bxb7 {[%emt 0:03:00]} Ra7 {[%emt 0:02:03]} 30. Nxc5 {[%emt 0:00:30]} Rxb7 {[%emt 0:00:49]} 31. Nxb7 {[%emt 0:00:30]} Be4 {[%emt 0:00:30]} 32. Rh3 {[%emt 0:00:00]} Bxb7 {[%emt 0:02:43]} 33. Rb3 {[%emt 0:00:00]} 1-0

[Event "Turkish Cup 2024"]
[Site "Denizli"]
[Date "2024.08.01"]
[Round "4"]
[White "Topuz, Mirac Melih"]
[Black "Herdem, Talha"]
[Result "1-0"]
[ECO "D00"]
[WhiteElo "2148"]
[BlackElo "1911"]
[Annotator "RC"]
[PlyCount "69"]
[EventDate "2024.08.01"]
[EventType "swiss"]
[EventCountry "TUR"]
[SourceTitle "playchess.com"]
[Source "ChessBase"]
[SourceQuality "1"]
[TimeControl "5400+30"]

1. a3 {[%emt 0:07:00]} d5 {[%emt 0:03:00]} 2. d4 {[%emt 0:00:30]} Nf6 {[%emt 0:02:30]} 3. Nf3 {[%emt 0:00:30]} e6 {[%emt 0:00:30]} 4. e3 {[%emt 0:00:30]} c5 {[%emt 0:03:30]} 5. dxc5 {[%emt 0:00:30]} Bxc5 {[%emt 0:00:30]} 6. b4 {[%emt 0:00:30]} Bd6 {[%emt 0:00:30]} 7. Bb2 {[%emt 0:00:00]} a5 {[%emt 0:01:30]} 8. b5 {[%emt 0:02:00]} O-O {[%emt 0:03:30]} 9. c4 {[%emt 0:04:30]} Nbd7 {[%emt 0:18:30]} 10. Nbd2 {[%emt 0:04:30]} Nc5 {[%emt 0:02:30]} 11. Be2 {[%emt 0:00:30]} Qe7 {[%emt 0:02:30]} 12. O-O {[%emt 0:00:30]} Rd8 {[%emt 0:02:30]} 13. Qc2 {[%emt 0:01:30]} Bd7 {[%emt 0:01:30]} 14. Rfd1 {[%emt 0:04:30]} Rac8 {[%emt 0:02:30]} 15. Rac1 {[%emt 0:04:30]} a4 {[%emt 0:06:30]} 16. Qb1 {[%emt 0:03:30]} Be8 {[%emt 0:18:30]} 17. Qa1 {[%emt 0:15:30]} dxc4 {[%emt 0:01:30]} 18. Rxc4 {[%emt 0:05:30]} h5 {[%emt 0:09:26]} 19. Rh4 {[%emt 0:06:30]} Nb3 {[%emt 0:07:09]} 20. Nxb3 {[%emt 0:03:30]} axb3 {[%emt 0:00:03]} 21. Nd4 {[%emt 0:06:30]} Be5 {[%emt 0:06:13]} 22. a4 {[%emt 0:09:10]} Nd5 {[%emt 0:05:23]} 23. Rxh5 {[%emt 0:01:28]} f5 {[%emt 0:00:26]} 24. Rh3 {[%emt 0:01:08]} Bf6 {[%emt 0:01:17]} 25. Rg3 {[%emt 0:03:39]} Kf8 {[%emt 0:00:32]} 26. e4 {[%emt 0:01:55]} Nb4 {[%emt 0:00:28]} 27. Ba3 {[%emt 0:04:51]} Rxd4 {[%emt 0:00:51]} 28. Rxd4 {[%emt 0:00:14]} Rd8 {[%emt 0:00:01]} 29. Bxb4 {[%emt 0:01:50]} Qxb4 {[%emt 0:00:41]} 30. Rxb4 {[%emt 0:00:30]} Bxa1 {[%emt 0:00:00]} 31. Rgxb3 {[%emt 0:00:00]} Rd2 {[%emt 0:00:13]} 32. Kf1 {[%emt 0:00:27]} e5 {[%emt 0:01:13]} 33. exf5 {[%emt 0:01:16]} Bf7 {[%emt 0:00:32]} 34. Rd3 {[%emt 0:00:28]} Ra2 {[%emt 0:00:29]} 35. g4 {[%emt 0:01:42]} 1-0

[Event "Turkish Cup 2024"]
[Site "Denizli"]
[Date "2024.08.01"]
[Round "4"]
[White "Metin, Enis"]
[Black "Uysal, Ilyas"]
[Result "1-0"]
[ECO "A48"]
[WhiteElo "2142"]
[BlackElo "1849"]
[Annotator "RC"]
[PlyCount "87"]
[EventDate "2024.08.01"]
[EventType "swiss"]
[EventCountry "TUR"]
[SourceTitle "playchess.com"]
[Source "ChessBase"]
[SourceQuality "1"]
[TimeControl "5400+30"]

1. d4 {[%emt 0:04:00]} Nf6 {[%emt 0:01:00]} 2. Bf4 {[%emt 0:05:30]} c5 {[%emt 0:01:30]} 3. e3 {[%emt 0:00:30]} cxd4 {[%emt 0:03:30]} 4. exd4 {[%emt 0:00:30]} g6 {[%emt 0:00:30]} 5. c3 {[%emt 0:05:30]} Bg7 {[%emt 0:03:30]} 6. Nf3 {[%emt 0:00:30]} d6 {[%emt 0:03:30]} 7. Be2 {[%emt 0:02:30]} O-O {[%emt 0:08:30]} 8. O-O {[%emt 0:00:30]} Qb6 {[%emt 0:04:30]} 9. Nbd2 {[%emt 0:07:30]} Bf5 {[%emt 0:08:30]} 10. Nc4 {[%emt 0:01:30]} Qc7 {[%emt 0:17:30]} 11. Ne3 {[%emt 0:04:30]} Bc8 {[%emt 0:03:30]} 12. c4 {[%emt 0:02:30]} Qd8 {[%emt 0:02:30]} 13. h3 {[%emt 0:04:30]} b6 {[%emt 0:04:30]} 14. Bh2 {[%emt 0:01:30]} Nc6 {[%emt 0:05:30]} 15. d5 {[%emt 0:02:30]} Nb8 {[%emt 0:04:30]} 16. Nd4 {[%emt 0:02:30]} Bb7 {[%emt 0:00:30]} 17. Bf3 {[%emt 0:01:30]} Qc7 {[%emt 0:10:46]} 18. Rc1 {[%emt 0:12:30]} a5 {[%emt 0:05:16]} 19. b3 {[%emt 0:02:30]} Nfd7 {[%emt 0:00:38]} 20. Re1 {[%emt 0:02:30]} Nf6 {[%emt 0:05:00]} 21. Qd2 {[%emt 0:09:30]} Qd7 {[%emt 0:00:53]} 22. a3 {[%emt 0:00:30]} Re8 {[%emt 0:00:22]} 23. Nec2 {[%emt 0:03:30]} Qc8 {[%emt 0:01:00]} 24. Nb5 {[%emt 0:01:30]} Na6 {[%emt 0:00:53]} 25. Ncd4 {[%emt 0:00:30]} Nb8 {[%emt 0:00:28]} 26. Bxd6 {[%emt 0:03:06]} Qd7 {[%emt 0:03:13]} 27. Bc7 {[%emt 0:03:46]} a4 {[%emt 0:01:22]} 28. b4 {[%emt 0:00:37]} Na6 {[%emt 0:00:55]} 29. Bxb6 {[%emt 0:00:30]} e5 {[%emt 0:00:06]} 30. dxe6 {[%emt 0:01:13]} Rxe6 {[%emt 0:00:34]} 31. Rxe6 {[%emt 0:01:52]} fxe6 {[%emt 0:00:15]} 32. Qe2 {[%emt 0:00:40]} e5 {[%emt 0:00:38]} 33. Qxe5 {[%emt 0:01:16]} Ne4 {[%emt 0:00:39]} 34. Qe6+ {[%emt 0:01:13]} Qxe6 {[%emt 0:00:30]} 35. Nxe6 {[%emt 0:00:00]} Re8 {[%emt 0:00:23]} 36. Nxg7 {[%emt 0:03:16]} Kxg7 {[%emt 0:00:01]} 37. c5 {[%emt 0:00:47]} Nb8 {[%emt 0:00:36]} 38. Bxe4 {[%emt 0:00:45]} Rxe4 {[%emt 0:01:24]} 39. Nd6 {[%emt 0:00:05]} Re7 {[%emt 0:00:19]} 40. Bd8 {[%emt 0:00:07]} Rd7 {[%emt 0:00:41]} 41. Nxb7 {[%emt 0:00:30]} Rxb7 {[%emt 0:00:30]} 42. c6 {[%emt 0:00:00]} Nxc6 {[%emt 0:00:00]} 43. Rxc6 {[%emt 0:00:18]} Rd7 {[%emt 0:00:23]} 44. Rc7 {[%emt 0:00:00]} 1-0

[Event "Turkish Cup 2024"]
[Site "Denizli"]
[Date "2024.08.01"]
[Round "4"]
[White "Baylav, Can"]
[Black "Sozat, Arda"]
[Result "1/2-1/2"]
[ECO "B41"]
[WhiteElo "2086"]
[BlackElo "1836"]
[Annotator "ChessBase"]
[PlyCount "45"]
[EventDate "2024.08.01"]
[EventType "swiss"]
[EventCountry "TUR"]
[SourceTitle "playchess.com"]
[Source "ChessBase"]
[SourceQuality "1"]
[TimeControl "5400+30"]

1. e4 c5 2. Nf3 a6 3. c4 e6 4. d4 cxd4 5. Nxd4 Nf6 6. Nc3 Bb4 7. Qd3 d5 8. exd5 exd5 9. Be2 O-O 10. O-O Nc6 11. Nxc6 bxc6 12. Bf3 Be6 13. cxd5 Nxd5 14. Ne2 Nc3 15. Qxd8 Nxe2+ 16. Bxe2 Rfxd8 17. a3 Be7 18. Bf3 Rac8 19. a4 Bd5 20. Be2 a5 21. Bf4 Bf6 22. Bg4 Ra8 23. Rfb1 1/2-1/2